bitfinex-derivatives/quotes_BTCF0:USTF0_20241210
["timestamp","ask_amount","ask_price","bid_price","bid_amount"]
[1733839696151,0.0981,98094.0,98089.0,0.3608]
[1733839696152,0.050955,98090.0,98089.0,0.3608]
[1733839698451,0.052955,98090.0,98089.0,0.3608]
[1733839699658,0.002,98090.0,98089.0,0.411756]
[1733839700048,0.002,98090.0,98089.0,0.41494278]
[1733839700356,0.002,98090.0,98089.0,0.59551801]
[1733839700659,0.002,98090.0,98089.0,0.41494278]
[1733839701752,8.105e-05,98098.0,98094.0,0.050953]
[1733839701957,0.05103305,98098.0,98095.0,0.00318678]
[1733839702255,0.3608,98096.0,98089.0,0.003]
[1733839702458,0.050954,98093.0,98090.0,0.00318662]
[1733839702653,0.102,98095.0,98091.0,0.00318662]
[1733839702852,0.050954,98093.0,98089.0,0.002]
[1733839703356,0.102,98095.0,98089.0,0.002]
[1733839703951,0.102,98095.0,98089.0,0.052955]
[1733839704563,0.102,98095.0,98090.0,0.00318688]
[1733839704763,0.102,98095.0,98091.0,0.00318688]
[1733839704947,0.102,98095.0,98092.0,0.00318688]
[1733839705152,0.102,98095.0,98093.0,0.00318688]
[1733839705353,0.102,98095.0,98094.0,0.00318688]
[1733839706461,0.102,98095.0,98094.0,0.00318689]
[1733839706653,0.103,98095.0,98094.0,0.00318689]
[1733839707054,0.103,98095.0,98083.0,0.18070312]
[1733839707249,0.050958,98085.0,98079.0,0.18070312]
[1733839707465,0.050958,98085.0,98078.0,0.18070312]
[1733839707666,0.050958,98085.0,98079.0,0.00318692]
[1733839707852,0.050958,98085.0,98080.0,0.00318692]
[1733839708053,0.050958,98085.0,98077.0,0.050962]
[1733839708264,0.1023,98094.0,98074.0,0.18223268]
[1733839708265,0.56052134,98087.0,98074.0,0.18223268]
[1733839708562,0.56052134,98087.0,98079.0,0.005]
[1733839708765,0.05096,98080.0,98079.0,0.005]
[1733839708966,0.050966,98070.0,98065.0,8.864e-05]
[1733839709548,0.0979,98072.0,98065.0,8.864e-05]
[1733839709752,0.050965,98071.0,98065.0,8.864e-05]
[1733839709962,0.0979,98072.0,98065.0,8.864e-05]
[1733839710753,0.0979,98072.0,98068.0,0.050967]
[1733839710962,0.0979,98072.0,98067.0,0.18070312]
[1733839711565,0.0979,98072.0,98065.0,0.36088864]
[1733839711750,0.0979,98072.0,98068.0,0.050966]
[1733839711954,0.0989,98072.0,98068.0,0.056966]
[1733839712559,0.09986067,98078.0,98067.0,0.18070312]
[1733839712762,0.09986067,98078.0,98077.0,0.050962]
[1733839712958,0.01056756,98082.0,98077.0,0.050962]
[1733839713153,0.09986067,98087.0,98077.0,0.050962]
[1733839713356,0.050961,98079.0,98072.0,0.18070312]
[1733839713559,0.050962,98078.0,98068.0,0.18470312]
[1733839713765,0.19972134,98077.0,98068.0,0.004]
[1733839713963,0.050963,98075.0,98068.0,0.004]
[1733839714266,0.09986067,98077.0,98068.0,0.004]
[1733839714470,0.09986067,98077.0,98076.0,0.050963]
[1733839714763,0.37131837,98085.0,98076.0,0.050963]
[1733839715062,0.050958,98084.0,98073.0,0.3608]
[1733839715266,0.050959,98083.0,98073.0,0.3608]
[1733839715564,0.15081967,98083.0,98073.0,0.3608]
[1733839715769,0.050959,98083.0,98076.0,0.003]
[1733839716255,0.37131837,98085.0,98068.0,0.004]
[1733839716454,0.25068334,98078.0,98073.0,0.004]
[1733839716969,0.25068334,98078.0,98077.0,0.002]
[1733839717163,0.050962,98078.0,98077.0,0.002]
[1733839718569,0.050962,98077.0,98076.0,0.003]
[1733839718770,0.050964,98074.0,98073.0,0.007]
[1733839719467,0.050968,98066.0,98065.0,8.864e-05]
[1733839719666,0.411768,98066.0,98065.0,8.864e-05]
[1733839720266,0.56405007,98066.0,98065.0,8.864e-05]
[1733839720466,0.411768,98066.0,98065.0,8.864e-05]
[1733839720677,0.711768,98066.0,98065.0,8.864e-05]
[1733839720861,0.050977,98049.0,98035.0,0.050984]
[1733839721063,0.050977,98048.0,98035.0,0.050984]
[1733839721371,0.050977,98048.0,98038.0,0.050982]
[1733839721574,0.050978,98047.0,98033.0,0.4649]
[1733839721866,0.050978,98047.0,98033.0,0.3618]
[1733839721867,0.156778,98047.0,98033.0,0.3618]
[1733839722061,0.156778,98047.0,98033.0,0.3608]
[1733839722270,0.05098,98043.0,98033.0,0.3608]
[1733839722870,0.050982,98039.0,98033.0,0.3608]
[1733839723074,0.34268,98038.0,98033.0,0.3608]
[1733839723369,0.00010403,98037.0,98033.0,0.3608]
[1733839724964,0.00010403,98037.0,98036.0,0.050983]
[1733839725463,0.00010403,98037.0,98033.0,0.3608]
[1733839726066,0.00010403,98037.0,98036.0,0.001]
[1733839726476,0.00010403,98037.0,98036.0,0.051983]
[1733839727071,0.00110403,98037.0,98033.0,0.325783]
[1733839727974,0.00110403,98037.0,98036.0,0.050983]
[1733839729670,0.00110403,98037.0,98036.0,0.051983]
[1733839730580,0.00010403,98037.0,98036.0,0.050983]
[1733839730875,0.02075916,98037.0,98036.0,0.003]
[1733839731074,0.07174216,98037.0,98036.0,0.003]
[1733839731678,0.02075916,98037.0,98036.0,0.003]
[1733839731977,0.07174216,98037.0,98036.0,0.003]
[1733839732476,0.07174216,98037.0,98036.0,0.007]
[1733839732976,0.43254216,98037.0,98036.0,0.007]
[1733839733172,0.43254216,98037.0,98036.0,0.006]
[1733839733475,0.53364216,98037.0,98036.0,0.006]
[1733839733673,0.53364216,98037.0,98036.0,0.003]
[1733839733886,0.050989,98026.0,98015.0,0.3608]
[1733839734367,0.05099,98025.0,98015.0,0.3608]
[1733839734866,0.05099,98025.0,98012.0,9.149e-05]
[1733839734867,0.050992,98019.0,98012.0,9.149e-05]
[1733839735071,0.09986067,98026.0,98012.0,9.149e-05]
[1733839735465,0.050992,98020.0,98012.0,9.149e-05]
[1733839735677,0.151293,98019.0,98012.0,9.149e-05]
[1733839736578,0.151293,98019.0,98016.0,0.00553047]
[1733839736775,0.1003,98019.0,98016.0,0.01253047]
[1733839737377,0.1013,98019.0,98016.0,0.00853047]
[1733839737571,0.1013,98019.0,98016.0,0.01253047]
[1733839738381,0.001,98019.0,98017.0,0.050993]
[1733839739671,0.001,98019.0,98017.0,0.054993]
[1733839739876,0.001,98019.0,98017.0,0.01]
[1733839740781,0.001,98019.0,98018.0,0.050993]
[1733839740971,0.001,98019.0,98018.0,0.158093]
[1733839741391,0.09986067,98027.0,98018.0,0.1071]
[1733839741582,0.09986067,98027.0,98024.0,0.3608]
[1733839741782,0.050988,98028.0,98018.0,0.1071]
[1733839741985,0.09986067,98028.0,98017.0,0.01]
[1733839742182,0.155688,98027.0,98017.0,0.01]
[1733839742379,0.050991,98021.0,98017.0,0.01]
[1733839742584,0.1047,98027.0,98017.0,0.004]
[1733839742885,0.001,98019.0,98018.0,0.006]
[1733839743092,0.001,98019.0,98018.0,0.01]
[1733839743274,0.155192,98020.0,98018.0,0.01]
[1733839743275,0.155192,98020.0,98018.0,0.004]
[1733839743976,0.050993,98018.0,98017.0,0.004]
[1733839744179,0.411793,98018.0,98017.0,0.004]
[1733839744373,0.512793,98018.0,98017.0,0.004]
[1733839744782,0.512793,98018.0,98000.0,0.1]
[1733839744981,0.051002,98001.0,98000.0,0.1]
[1733839745173,0.393802,98001.0,98000.0,0.1]
[1733839745880,0.393802,98001.0,97962.0,0.54150312]
[1733839745881,0.051016,97975.0,97962.0,0.54150312]
[1733839746075,0.15087767,97972.0,97962.0,0.3608]
[1733839746283,0.15087767,97972.0,97957.0,0.00153142]
[1733839746284,0.05102,97966.0,97957.0,0.00153142]
[1733839746490,0.09986067,97972.0,97948.0,0.18070312]
[1733839746491,0.34284,97965.0,97948.0,0.18070312]
[1733839746686,0.3608,97952.0,97943.0,0.18070312]
[1733839746993,0.3608,97952.0,97938.0,0.0982]
[1733839746994,0.051029,97949.0,97938.0,0.0982]
[1733839747293,0.09986067,97948.0,97938.0,0.0982]
[1733839747583,0.051032,97942.0,97937.0,7.819e-05]
[1733839747779,0.051033,97940.0,97937.0,7.819e-05]
[1733839747983,0.3608,97943.0,97937.0,7.819e-05]
[1733839748181,0.051034,97938.0,97937.0,7.819e-05]
[1733839748983,0.351034,97938.0,97937.0,1e-08]
[1733839749186,0.351034,97938.0,97902.0,0.3608]
[1733839749187,0.051048,97913.0,97902.0,0.3608]
[1733839749490,0.051052,97905.0,97889.0,0.15079241]
[1733839749675,0.3608,97906.0,97889.0,0.09973241]
[1733839749877,0.3608,97906.0,97891.0,0.051059]
[1733839750082,0.3608,97906.0,97889.0,0.09973241]
[1733839750290,0.49325384,97912.0,97896.0,0.3608]
[1733839750587,0.49325384,97912.0,97905.0,0.411851]
[1733839751088,0.49325384,97912.0,97905.0,0.3608]
[1733839751982,0.49325384,97912.0,97910.0,0.051049]
[1733839752288,0.34292,97912.0,97910.0,0.051049]
[1733839752989,0.34292,97912.0,97905.0,0.36772]
[1733839752990,0.001,97906.0,97905.0,0.36772]
[1733839753189,0.34292,97912.0,97909.0,0.051049]
[1733839753582,0.34292,97912.0,97910.0,0.009]
[1733839753583,0.001,97912.0,97910.0,0.009]
[1733839753781,0.34304,97930.0,97929.0,0.051039]
[1733839753994,0.36088248,97939.0,97928.0,0.3608]
[1733839753995,8.248e-05,97939.0,97928.0,0.3608]
[1733839754289,8.248e-05,97939.0,97938.0,0.411834]
[1733839755385,8.248e-05,97939.0,97938.0,0.3608]
[1733839756779,8.248e-05,97939.0,97938.0,0.3628]
[1733839757094,8.248e-05,97939.0,97938.0,0.3668]
[1733839757289,8.248e-05,97939.0,97938.0,0.3648]
[1733839757492,8.248e-05,97939.0,97938.0,0.3698]
[1733839757787,8.248e-05,97939.0,97938.0,0.3658]
[1733839757990,8.248e-05,97939.0,97938.0,0.3678]
[1733839759084,8.248e-05,97939.0,97938.0,0.3648]
[1733839759789,8.248e-05,97939.0,97938.0,0.3678]
[1733839760189,8.248e-05,97939.0,97938.0,0.007]
[1733839760389,8.248e-05,97939.0,97919.0,0.3608]
[1733839760595,8.248e-05,97939.0,97905.0,0.1015]
[1733839760596,0.05111648,97939.0,97938.0,0.007]
[1733839761287,0.05111648,97939.0,97912.0,0.3608]
[1733839761288,0.16927537,97939.0,97912.0,0.3608]
[1733839761487,0.05104,97927.0,97912.0,0.3608]
[1733839761885,0.051041,97926.0,97912.0,0.3608]
[1733839762090,0.051041,97926.0,97912.0,0.411848]
[1733839763083,0.15033384,97922.0,97912.0,0.3608]
[1733839763488,0.15033384,97922.0,97912.0,0.3698]
[1733839763692,0.15033384,97922.0,97912.0,0.3738]
[1733839764591,0.15133384,97922.0,97914.0,0.051047]
[1733839765189,0.15133384,97922.0,97920.0,0.051043]
[1733839765394,0.001,97922.0,97920.0,0.051043]
[1733839765893,0.001,97922.0,97914.0,0.051047]
[1733839766089,0.001,97922.0,97912.0,0.3728]
[1733839766294,0.15133384,97922.0,97914.0,0.007]
[1733839766594,0.15133384,97922.0,97920.0,0.051044]
[1733839766901,0.001,97922.0,97914.0,0.062046]
[1733839767087,0.001,97922.0,97916.0,0.051046]
[1733839767399,0.001,97922.0,97919.0,0.051044]
[1733839767897,0.15033384,97930.0,97921.0,0.3608]
[1733839768091,0.15033384,97931.0,97921.0,0.3608]
[1733839769192,8.248e-05,97939.0,97930.0,0.3608]
[1733839769398,8.248e-05,97939.0,97937.0,0.051035]
[1733839769597,8.248e-05,97939.0,97933.0,0.051037]
[1733839769783,0.0203631,97938.0,97937.0,0.051035]
[1733839769983,8.248e-05,97939.0,97937.0,0.051035]
[1733839770196,8.248e-05,97939.0,97938.0,0.3608]
[1733839773202,8.248e-05,97939.0,97938.0,0.3648]
[1733839773499,0.00108248,97939.0,97938.0,0.3718]
[1733839773892,0.00108248,97939.0,97938.0,0.3678]
[1733839774091,0.00108248,97939.0,97938.0,0.3718]
[1733839774497,8.248e-05,97939.0,97938.0,0.3648]
[1733839774700,0.00108248,97939.0,97938.0,0.3718]
[1733839776790,0.00108248,97939.0,97938.0,0.011]
[1733839777102,0.051037,97933.0,97924.0,0.18198915]
[1733839777293,0.051037,97933.0,97923.0,0.18198915]
[1733839777593,0.51113384,97934.0,97921.0,0.18198915]
[1733839777594,0.51165385,97934.0,97921.0,0.18198915]
[1733839777796,0.51113384,97934.0,97921.0,0.18198915]
[1733839777995,0.51113384,97934.0,97920.0,0.051044]
[1733839777996,0.51113384,97934.0,97920.0,0.23303315]
[1733839778185,0.51113384,97934.0,97920.0,0.051044]
[1733839778597,0.56217084,97934.0,97921.0,0.051043]
[1733839778796,0.51113384,97934.0,97917.0,0.3608]
[1733839778996,0.51113384,97934.0,97926.0,0.3608]
[1733839779294,0.51113384,97934.0,97932.0,0.051037]
[1733839779601,0.3608,97934.0,97932.0,0.051037]
[1733839780397,0.3618,97934.0,97932.0,0.051037]
[1733839781104,8.248e-05,97939.0,97926.0,0.3608]
[1733839781293,8.248e-05,97939.0,97931.0,0.051038]
[1733839781495,8.248e-05,97939.0,97937.0,0.051035]
[1733839782199,8.248e-05,97939.0,97937.0,0.23302415]
[1733839782406,0.00108248,97939.0,97937.0,0.051035]
[1733839783096,0.15033384,97950.0,97948.0,0.051029]
[1733839783292,0.02063554,97952.0,97950.0,0.051028]
[1733839784095,0.00011508,97951.0,97950.0,0.051028]
[1733839785406,0.00011508,97951.0,97950.0,0.053028]
[1733839786106,0.00011508,97951.0,97950.0,0.23505506]
[1733839786418,0.00011508,97951.0,97950.0,0.053028]
[1733839786804,0.00011508,97951.0,97950.0,0.054028]
[1733839788206,0.00011508,97951.0,97950.0,0.003]
[1733839788806,0.00011508,97951.0,97930.0,0.18197429]
[1733839789006,0.15033384,97940.0,97929.0,0.051039]
[1733839789202,0.051036,97935.0,97924.0,0.051042]
[1733839790007,0.051037,97934.0,97924.0,0.051042]
[1733839790495,0.051037,97934.0,97923.0,0.3608]
[1733839790496,0.09053613,97937.0,97923.0,0.3608]
[1733839790810,0.29823613,97939.0,97929.0,0.051039]
[1733839791105,0.29823613,97939.0,97930.0,0.051038]
[1733839791106,0.09053613,97935.0,97930.0,0.051038]
[1733839791303,0.001,97934.0,97930.0,0.051038]
[1733839791606,0.09153613,97934.0,97930.0,0.051038]
[1733839791802,0.09053613,97934.0,97930.0,0.051038]
[1733839792200,0.09053613,97933.0,97924.0,0.004]
[1733839792408,0.09053613,97933.0,97929.0,0.051039]
[1733839792708,0.09053613,97933.0,97924.0,0.004]
[1733839792910,0.09053613,97933.0,97931.0,0.051038]
[1733839793210,0.09053613,97932.0,97931.0,0.051038]
[1733839793405,0.1007,97938.0,97931.0,0.051038]
[1733839793711,0.002,97934.0,97931.0,0.051038]
[1733839794911,0.004,97934.0,97931.0,0.051038]
[1733839795504,0.004,97934.0,97923.0,0.3608]
[1733839795706,0.002,97934.0,97933.0,0.051037]
[1733839796709,0.34312,97936.0,97933.0,0.051037]
[1733839797018,0.12210592,97934.0,97933.0,0.051037]
[1733839797408,0.02067041,97934.0,97933.0,0.051037]
[1733839797606,0.02267041,97934.0,97933.0,0.051037]
[1733839798014,0.14478429,97934.0,97933.0,0.051037]
[1733839798207,0.02267041,97934.0,97933.0,0.051037]
[1733839798412,0.02567041,97934.0,97933.0,0.051037]
[1733839798809,0.005,97934.0,97933.0,0.051037]
[1733839799010,0.002,97934.0,97933.0,0.051037]
[1733839799213,0.006,97934.0,97933.0,0.051037]
[1733839799715,0.006,97934.0,97933.0,0.23301129]
[1733839799916,0.004,97934.0,97933.0,0.24348149]
[1733839800118,0.004,97934.0,97933.0,0.0615072]
[1733839800714,0.15033384,97950.0,97947.0,0.05103]
[1733839800715,0.02019465,97948.0,97947.0,0.05103]
[1733839801020,0.02019465,97948.0,97947.0,0.41183]
[1733839802106,0.02019465,97948.0,97947.0,0.41483]
[1733839802510,0.09155578,97956.0,97950.0,0.051028]
[1733839802711,0.09154721,97971.0,97956.0,0.051025]
[1733839802921,0.09154721,97977.0,97970.0,0.3608]
[1733839803121,0.24188105,97980.0,97970.0,0.3608]
[1733839803313,0.15033384,97980.0,97979.0,0.3608]
[1733839803515,0.09154721,97986.0,97984.0,0.05101]
[1733839803922,0.0200315,97985.0,97984.0,0.05101]
[1733839804512,0.00011058,97985.0,97984.0,0.05101]
[1733839804923,0.00011058,97985.0,97984.0,0.05201]
[1733839805916,0.00911058,97985.0,97984.0,0.05301]
[1733839806519,0.00611058,97985.0,97984.0,0.05201]
[1733839806726,0.00711058,97985.0,97984.0,0.06001]
[1733839807126,0.00711058,97985.0,97984.0,0.009]
[1733839807321,0.00711058,97985.0,97984.0,0.008]
[1733839807322,0.00111058,97985.0,97984.0,0.008]
[1733839807517,0.00111058,97985.0,97984.0,0.012]
[1733839807724,1.10836416,97985.0,97958.0,0.3608]
[1733839807920,0.15033384,97968.0,97966.0,0.051019]
[1733839808225,0.15033384,97968.0,97958.0,0.3608]
[1733839808226,0.09126792,97972.0,97970.0,0.051018]
[1733839808416,0.15033384,97976.0,97975.0,0.051015]
[1733839808617,0.26868601,97985.0,97971.0,0.3608]
[1733839808823,0.26868601,97985.0,97984.0,0.05101]
[1733839809023,0.11842769,97985.0,97984.0,0.05101]
[1733839809828,0.01086353,97985.0,97984.0,0.05101]
[1733839811127,7.552e-05,97985.0,97984.0,0.05101]
[1733839811424,0.00207552,97985.0,97984.0,0.05101]
[1733839811821,0.00107552,97985.0,97984.0,0.05101]
[1733839812029,0.00207552,97985.0,97984.0,0.05101]
[1733839812426,5.2e-07,97985.0,97984.0,0.05101]
[1733839812623,0.343,98014.0,97991.0,0.00153088]
[1733839812818,0.343,98014.0,98013.0,0.050995]
[1733839813013,0.343,98014.0,98005.0,0.3608]
[1733839813222,0.343,98014.0,97991.0,0.00153088]
[1733839813223,0.36326395,98014.0,98000.0,0.051002]
[1733839813525,0.36326395,98014.0,97996.0,0.3608]
[1733839813526,7.431e-05,98013.0,97996.0,0.3608]
[1733839813724,7.431e-05,98013.0,98005.0,0.050999]
[1733839813725,0.15033384,98006.0,98005.0,0.050999]
[1733839814026,7.431e-05,98013.0,98007.0,0.050998]
[1733839814222,7.431e-05,98013.0,97996.0,0.3608]
[1733839814223,7.431e-05,98013.0,98012.0,0.050996]
[1733839814425,7.431e-05,98013.0,97996.0,0.3608]
[1733839814728,0.15033384,98006.0,98000.0,0.051002]
[1733839815118,0.15033384,98006.0,98001.0,0.051001]
[1733839816019,0.15033384,98006.0,97996.0,0.3608]
[1733839816020,0.16133384,98006.0,97996.0,0.3608]
[1733839816332,0.16133384,98006.0,98005.0,0.050999]
[1733839816516,0.011,98006.0,98005.0,0.050999]
[1733839817024,0.011,98006.0,98005.0,0.411799]
[1733839818021,0.007,98006.0,98005.0,0.411799]
[1733839818220,0.004,98006.0,98005.0,0.411799]
[1733839818518,0.012,98006.0,98005.0,0.411799]
[1733839818927,7.431e-05,98013.0,98012.0,0.050996]
[1733839821222,0.00107431,98013.0,98012.0,0.055996]
[1733839821735,0.00107431,98013.0,98012.0,0.058996]
[1733839821921,0.15033384,98040.0,98012.0,0.008]
[1733839822124,0.15033384,98040.0,98039.0,0.050982]
[1733839822430,0.05027592,98044.0,98030.0,0.3608]
[1733839822431,0.050985,98033.0,98030.0,0.3608]
[1733839822632,0.050985,98033.0,98031.0,0.050986]
[1733839822827,0.050982,98039.0,98030.0,0.3608]
[1733839823025,0.050982,98039.0,98012.0,0.008]
[1733839823026,0.050986,98032.0,98021.0,0.411791]
[1733839823229,0.050989,98025.0,98021.0,0.3608]
[1733839823431,0.050987,98030.0,98021.0,0.411791]
[1733839823631,0.3608,98025.0,98012.0,0.008]
[1733839823939,0.15033384,98022.0,98016.0,0.050993]
[1733839824131,0.15033384,98022.0,98017.0,0.050993]
[1733839824320,0.3608,98025.0,98012.0,0.008]
[1733839824520,0.3608,98025.0,98024.0,0.05099]
[1733839825125,0.01074634,98028.0,98022.0,0.3608]
[1733839825325,0.411787,98030.0,98012.0,0.009]
[1733839825326,0.36132001,98030.0,98017.0,0.004]
[1733839825521,0.050993,98018.0,98017.0,0.004]
[1733839825727,0.3608,98021.0,98012.0,0.003]
[1733839825939,0.050995,98013.0,98012.0,0.003]
[1733839826527,0.050996,98012.0,98000.0,0.3608]
[1733839826837,0.3608,98013.0,98000.0,0.3608]
[1733839827032,0.3608,98002.0,97976.0,0.3608]
[1733839827238,0.051006,97993.0,97979.0,0.051013]
[1733839827537,0.15033384,97986.0,97979.0,0.051013]
[1733839827733,0.3608,97985.0,97976.0,0.3608]
[1733839827930,0.15033384,97986.0,97984.0,0.05101]
[1733839828124,0.104,97992.0,97976.0,0.3608]
[1733839828329,0.104,97992.0,97979.0,0.002]
[1733839828330,0.15033384,97990.0,97979.0,0.002]
[1733839828631,0.15033384,97990.0,97987.0,0.051008]
[1733839828833,0.3608,97993.0,97981.0,0.051012]
[1733839829031,0.001,97985.0,97981.0,0.051012]
[1733839829233,0.001,97985.0,97979.0,0.002]
[1733839829442,0.051012,97980.0,97979.0,0.002]
[1733839829627,9.946e-05,97980.0,97979.0,0.002]
[1733839830331,9.946e-05,97980.0,97979.0,0.001]
[1733839831038,9.946e-05,97980.0,97979.0,0.003]
[1733839831833,9.946e-05,97980.0,97979.0,0.001]
[1733839832024,9.946e-05,97980.0,97979.0,0.003]
[1733839833441,9.946e-05,97980.0,97979.0,0.004]
[1733839844253,0.36089946,97980.0,97979.0,0.004]
[1733839844552,0.41191146,97980.0,97979.0,0.004]
[1733839844855,0.36089946,97980.0,97979.0,0.004]
[1733839845348,0.01040527,97980.0,97979.0,0.004]
[1733839846650,0.01040527,97980.0,97968.0,0.3608]
[1733839846651,0.051015,97975.0,97968.0,0.3608]
[1733839846846,0.158316,97974.0,97968.0,0.3608]
[1733839847455,0.051018,97970.0,97968.0,0.3608]
[1733839847652,0.05102,97965.0,97959.0,0.00153135]
[1733839847854,0.1039,97964.0,97959.0,0.00153135]
[1733839848354,0.4647,97964.0,97950.0,0.0001258]
[1733839848656,0.20008762,97960.0,97950.0,0.0001258]
[1733839848958,0.20008762,97960.0,97959.0,0.004]
[1733839848959,0.25111062,97960.0,97959.0,0.004]
[1733839849157,0.051027,97952.0,97950.0,0.0001258]
[1733839849350,0.09133697,97951.0,97950.0,0.0001258]
[1733839849750,0.158127,97952.0,97950.0,0.0001258]
[1733839850146,0.09133707,97951.0,97950.0,0.0001258]
[1733839850553,0.051033,97941.0,97939.0,0.00153177]
[1733839850758,0.1071,97952.0,97918.0,0.3608]
[1733839850759,0.051034,97939.0,97918.0,0.3608]
[1733839850953,0.051034,97939.0,97928.0,0.051039]
[1733839851158,0.2225,97940.0,97922.0,0.051042]
[1733839851159,0.051035,97937.0,97922.0,0.051042]
[1733839851362,0.2225,97940.0,97919.0,0.01030581]
[1733839851556,0.273534,97940.0,97927.0,0.3608]
[1733839851752,0.051034,97939.0,97927.0,0.3608]
[1733839852258,0.3608,97936.0,97927.0,0.3608]
[1733839852468,0.3608,97936.0,97918.0,0.3608]
[1733839852469,0.051037,97934.0,97919.0,0.051044]
[1733839852661,0.05114654,97933.0,97919.0,0.051044]
[1733839853162,0.05114654,97933.0,97918.0,0.3608]
[1733839853467,0.05114654,97933.0,97914.0,0.051047]
[1733839853665,0.05114654,97933.0,97916.0,0.051045]
[1733839853972,0.05114654,97933.0,97917.0,0.051045]
[1733839854159,0.01044603,97933.0,97920.0,0.051044]
[1733839854363,0.01044603,97933.0,97931.0,0.053038]
[1733839854558,0.01044603,97933.0,97932.0,0.3608]
[1733839854559,0.00010954,97933.0,97932.0,0.3608]
[1733839855653,0.00110954,97933.0,97932.0,0.3608]
[1733839857659,0.02168635,97933.0,97932.0,0.3608]
[1733839858956,0.02168635,97933.0,97932.0,0.411837]
[1733839863367,0.00110954,97933.0,97932.0,0.411837]
[1733839863560,0.00110954,97933.0,97932.0,0.518837]
[1733839864273,0.00110954,97933.0,97932.0,0.632637]
[1733839864470,0.10004381,97950.0,97949.0,0.051029]
[1733839864662,0.10004381,97950.0,97933.0,0.051037]
[1733839864663,0.051034,97940.0,97933.0,0.051037]
[1733839864865,0.051034,97940.0,97932.0,0.4678]
[1733839864866,0.10004381,97943.0,97932.0,0.4688]
[1733839865060,0.051032,97942.0,97938.0,0.051034]
[1733839865464,0.00011845,97941.0,97938.0,0.051034]
[1733839865765,0.00011845,97941.0,97932.0,0.46872]
[1733839865973,0.00011845,97941.0,97940.0,0.051033]
[1733839866772,0.00011845,97941.0,97938.0,0.001]
[1733839866974,0.411834,97939.0,97938.0,0.001]
[1733839867267,0.051036,97936.0,97931.0,0.002]
[1733839867464,0.051036,97935.0,97931.0,0.002]
[1733839868458,0.051037,97932.0,97931.0,0.002]
[1733839869770,0.052037,97932.0,97931.0,0.003]
[1733839870171,0.001,97932.0,97931.0,0.003]
[1733839870364,0.001,97932.0,97931.0,0.054038]
[1733839870769,0.001,97932.0,97931.0,0.003]
[1733839871160,0.001,97932.0,97931.0,0.054038]
[1733839871670,0.02141247,97932.0,97931.0,0.054038]
[1733839872067,0.02141247,97932.0,97931.0,0.003]
[1733839872659,0.07244947,97932.0,97931.0,0.003]
[1733839873468,0.43324947,97932.0,97931.0,0.003]
[1733839874380,0.43824947,97932.0,97931.0,0.002]
[1733839875677,0.44224947,97932.0,97931.0,0.002]
[1733839876980,0.39121247,97932.0,97931.0,0.002]
[1733839878668,0.54327841,97932.0,97931.0,0.002]
[1733839879385,0.39121247,97932.0,97931.0,0.002]
[1733839879978,0.54402577,97932.0,97931.0,0.002]
[1733839880178,0.39121247,97932.0,97931.0,0.002]
[1733839880383,0.49190237,97932.0,97931.0,0.002]
[1733839880589,0.44224947,97932.0,97931.0,0.002]
[1733839881071,0.59506195,97932.0,97931.0,0.002]
[1733839881272,0.78540947,97932.0,97931.0,0.002]
[1733839881479,0.93821218,97932.0,97931.0,0.002]
[1733839881983,0.78540947,97932.0,97931.0,0.002]
[1733839882378,0.93820504,97932.0,97931.0,0.002]
[1733839882574,0.78540947,97932.0,97931.0,0.002]
[1733839887790,1.19585952,97932.0,97909.0,0.18097161]
[1733839887990,1.19585952,97932.0,97900.0,0.1]
[1733839887991,0.05105,97908.0,97907.0,0.18097161]
[1733839888179,0.100821,97908.0,97900.0,0.1]
[1733839888484,0.411854,97901.0,97900.0,0.1]
[1733839888886,0.411854,97901.0,97878.0,0.18097161]
[1733839888887,0.051058,97893.0,97878.0,0.18097161]
[1733839889079,0.09167268,97883.0,97875.0,0.3608]
[1733839889286,0.09167268,97882.0,97875.0,0.3608]
[1733839889486,0.09167268,97885.0,97875.0,0.3608]
[1733839889985,0.14273568,97883.0,97875.0,0.3608]
[1733839890191,0.10004381,97888.0,97875.0,0.3608]
[1733839890192,0.09167268,97881.0,97875.0,0.3608]
[1733839890384,0.051069,97872.0,97869.0,0.1084]
[1733839890782,0.051069,97872.0,97858.0,0.3608]
[1733839890990,0.3608,97876.0,97858.0,0.3608]
[1733839890991,0.09155447,97866.0,97858.0,0.3608]
[1733839891191,0.09155447,97865.0,97858.0,0.3608]
[1733839891496,0.051074,97863.0,97858.0,0.3608]
[1733839891687,0.34271309,97868.0,97858.0,0.3608]
[1733839891889,0.09155447,97867.0,97858.0,0.3608]
[1733839892085,0.051073,97864.0,97858.0,0.3608]
[1733839892280,0.09155447,97867.0,97858.0,0.3608]
[1733839892486,0.26176841,97868.0,97858.0,0.3608]
[1733839892692,0.051072,97867.0,97858.0,0.3608]
[1733839892890,0.051073,97864.0,97858.0,0.3608]
[1733839893080,0.57149741,97868.0,97849.0,0.3608]
[1733839893282,0.20008762,97861.0,97845.0,0.05116092]
[1733839893487,0.10004381,97855.0,97848.0,0.3608]
[1733839893887,0.10004381,97855.0,97848.0,0.411881]
[1733839895192,0.10104381,97855.0,97848.0,0.3608]
[1733839895398,0.001,97855.0,97853.0,0.051078]
[1733839895786,0.10004381,97861.0,97853.0,0.051078]
[1733839895988,0.10004381,97861.0,97860.0,0.411875]
[1733839896192,0.10004381,97870.0,97864.0,0.051073]
[1733839896381,0.10004381,97870.0,97866.0,0.051072]
[1733839896784,0.051067,97875.0,97866.0,0.051072]
[1733839896990,0.051067,97875.0,97869.0,0.3608]
[1733839897191,0.051067,97875.0,97870.0,0.1045]
[1733839897692,0.12071781,97876.0,97870.0,0.1045]
[1733839899892,0.12071781,97876.0,97870.0,0.1065]
[1733839900198,0.05107,97870.0,97848.0,0.051081]
[1733839900389,0.10004381,97858.0,97848.0,0.051081]